Cogmind - Beta 10.2 @@@ ROGUE MODE // 2022.01.24 @ 18:14:31 Player: Sara Result: Self-destructed Performance ------------- Evolutions (2) 1000 Regions Visited (3) 600 Robots Destroyed (21) 105 Value Destroyed (559) 559 Prototype IDs (0) 0 Alien Tech Used (0) 0 Bonus (0) 0 TOTAL SCORE: 2264 Bonus ------- None Cogmind --------- Core Integrity 424/550 Matter 300/300 Energy 150/150 System Corruption 0% Temperature Cool (18) Movement Treading (180) Ox1 Location -8/Materials Parts ------- > --- POWER (1) -------- Micro Nuclear Core > --- PROPULSION (3) --- Light Treads > --- UTILITY (5) ------ Large Storage Unit Advanced Sensor Array Improved Targeting Computer Improved Targeting Computer > --- WEAPON (2) ------- Pulse Rifle > --- INVENTORY (10) --- Ion Engine Micro Nuclear Core High-capacity Matter Pod (200) Hardened Medium Armor Plating System Shield Pulse Rifle Pulse Rifle Autogun Autogun Mining Claw Peak State ------------ > --- POWER ------------ Micro Nuclear Core > --- PROPULSION ------- Light Treads Light Treads Light Treads > --- UTILITY ---------- Large Storage Unit Advanced Sensor Array Improved Targeting Computer Improved Targeting Computer Hacking Suite > --- WEAPON ----------- Pulse Rifle Pulse Rifle > --- INVENTORY -------- Ion Engine Micro Nuclear Core High-capacity Matter Pod Hardened Medium Armor Plating Pulse Rifle Pulse Rifle Autogun Autogun Mining Claw [Rating: 26] Favorites ----------- Power Ion Engine Engine Ion Engine Power Core Micro Nuclear Core Propulsion Aluminum Leg Treads Light Treads Leg Aluminum Leg Utility Large Storage Unit Device Sensor Array Storage Large Storage Unit Processor Improved Targeting Computer Hackware Hacking Suite Weapon Assault Rifle Energy Gun Pulse Rifle Energy Cannon Particle Cannon Ballistic Gun Assault Rifle Build | -11 -10 -9 -8 ------- Run | Scr Mat Mat Mat Slots Evolved 4 | . . 2 2 Power . | . . . . Propulsion 1 | . . . 1 Utility 3 | . . 2 1 Weapon . | . . . . Parts Attached 23 | . 4 7 12 Power 3 | . . 1 2 Engine 1 | . . 1 . Core 2 | . . . 2 Reactor . | . . . . Propulsion 4 | . . 2 2 Treads 4 | . . 2 2 Leg . | . . . . Wheel . | . . . . Hover . | . . . . Flight . | . . . . Utility 7 | . 2 2 3 Device 3 | . 1 . 2 Storage 1 | . 1 . . Processor 2 | . . 1 1 Hackware 1 | . . 1 . Protection . | . . . . Artifact . | . . . . Weapon 9 | . 2 2 5 Energy Gun 3 | . . . 3 Energy Cannon 2 | . . . 2 Ballistic Gun 4 | . 2 2 . Ballistic Cannon . | . . . . Launcher . | . . . . Special Weapon . | . . . . Impact Weapon . | . . . . Slashing Weapon . | . . . . Piercing Weapon . | . . . . Special Melee Weapon . | . . . . Unidentified Prototypes . | . . . . Parts Lost 7 | . . . 7 Power . | . . . . Propulsion 3 | . . . 3 Utility 2 | . . . 2 Weapon 2 | . . . 2 Highest Loss Streak 4 | . . . 4 Average Slot Usage (%) 95 | . 99 91 97 Engine 9 | . 14 11 1 Core 1 | . . . 7 Treads 7 | . . 2 26 Leg 17 | . 28 19 . Device 11 | . 13 11 7 Storage 11 | . 14 11 9 Processor 6 | . . 6 18 Hackware 5 | . . 7 8 Energy Gun 3 | . 5 . 6 Energy Cannon 1 | . . . 9 Ballistic Gun 17 | . 22 22 1 Naked Turns . | . . . . Heaviest Build 33 | 12 26 28 33 Greatest Support 60 | 20 20 40 60 Greatest Overweight (x) 1 | . 1 1 . Average Overweight (x) . | . . . . Largest Inventory Capacity 10 | 6 10 10 10 Average Capacity 9 | 6 8 10 10 Most Carried 10 | 6 10 10 10 Average Carried 8 | 6 7 9 8 Final Capacity 10 | 6 10 10 10 Final Carried 10 | 6 10 10 10 Class Distribution -------------------- 89% | Mutant 10% | Scavenger-Mutant Dominant Class ---------------- Mutant | -10/Materials Mutant | -9/Materials Mutant | -8/Materials Resources | -11 -10 -9 -8 ----------- Run | Scr Mat Mat Mat Matter Collected 751 | 200 52 382 117 Remotely . | . . . . Salvage Created 667 | . 52 291 324 Parts 46 | . 2 26 18 Haulers Intercepted 1 | . 1 . . Recyclers Shooed 1 | . . . 1 Parts Field Recycled . | . . . . Retrieved Matter . | . . . . Parts Self-Destructed . | . . . . Prevented . | . . . . Kills | -11 -10 -9 -8 ------- Run | Scr Mat Mat Mat Combat Hostiles Destroyed 18 | . . 9 9 Guns 11 | . . 9 2 Cannons 7 | . . . 7 Classes Destroyed 6 | . 1 4 1 Hauler 1 | . 1 . . Operator 2 | . . 1 1 Swarmer 8 | . . 4 4 Grunt 7 | . . 4 3 Sentry 2 | . . 1 1 Hunter 1 | . . . 1 Best Kill Streak 4 | . 1 4 2 Combat Bots Only 4 | . . 4 2 Max Kills in Single Turn 1 | . 1 1 1 Gunslinging . | . . . . Exploded . | . . . . Melee . | . . . . Uniques/NPCs Destroyed . | . . . . Combat | -11 -10 -9 -8 -------- Run | Scr Mat Mat Mat Damage Taken 1282 | . . 217 1065 Core 152 | . . 26 126 Absorbed by Shields . | . . . . Core Remaining (%) 97 | 100 100 93 . Volleys Fired 53 | . 2 21 30 Largest 2 | . 2 2 2 Hottest 136 | . 40 46 136 Shots Fired 105 | . 4 42 59 Gun 63 | . 4 42 17 Cannon 42 | . . . 42 Launcher . | . . . . Special . | . . . . Kinetic 46 | . 4 42 . Thermal 59 | . . . 59 Explosive . | . . . . Electromagnetic . | . . . . Robot Hit Streak 20 | . 4 11 20 Robot Miss Streak 3 | . . 2 3 Penetration Max . | . . . . Secondary Targets . | . . . . Shots Hit Robots 80 | . 4 32 44 Core Hits 34 | . 2 16 16 Critical Hits 3 | . 2 . 1 Critical Kills 1 | . 1 . . Critical Parts Destroyed 2 | . 1 . 1 Melee Attacks . | . . . . Impact . | . . . . Slashing . | . . . . Piercing . | . . . . Sneak Attacks . | . . . . Combat Hostiles . | . . . . Follow-up Attacks . | . . . . Damage Inflicted 1294 | . 51 395 848 Guns 682 | . 51 395 236 Cannons 597 | . . . 597 Explosions . | . . . . Melee . | . . . . Ramming 15 | . . . 15 Kinetic 446 | . 51 395 . Thermal 833 | . . . 833 Explosive . | . . . . Electromagnetic . | . . . . Impact . | . . . . Slashing . | . . . . Piercing . | . . . . Highest Corruption . | . . . . Average Corruption . | . . . . Corruption Purged . | . . . . Overload Shots . | . . . . Overflow Damage 17 | . . . 17 Projectiles 17 | . . . 17 Explosions . | . . . . Melee . | . . . . Knockbacks . | . . . . Impact . | . . . . Kinetic . | . . . . Secondary . | . . . . Self-Inflicted Damage . | . . . . Shots . | . . . . Rammed 2 | . . . 2 Targets Rammed 2 | . . . 2 Kicked . | . . . . Crushed . | . . . . Highest Temperature 390 | . . 9 390 Average Temperature 145 | . . 9 147 Received Heat Transfer 534 | . . 84 450 Effects 8 | . . . 8 Shutdowns 1 | . . . 1 Energy Bleed 1 | . . . 1 Interference 6 | . . . 6 Siege Activations . | . . . . Robots Corrupted . | . . . . Combat Hostiles . | . . . . Parts Fried . | . . . . Impact Corruptions . | . . . . Robots Melted . | . . . . Combat Hostiles . | . . . . Parts Melted 2 | . . . 2 Heat Transferred 1591 | . . . 1591 Parts Sabotaged . | . . . . Parts Stolen . | . . . . Parts Stripped . | . . . . Power Chain Reactions . | . . . . Missiles Intercepted . | . . . . Alert | -11 -10 -9 -8 ------- Run | Scr Mat Mat Mat Peak Influence 234 | . 25 234 214 Initial 21 | . . 3 21 Average 51 | . 10 52 111 Maximum Alert Level 1 | . . 1 1 Low Security (%) 99 | 100 100 99 97 Level 1 . | . . . 2 Level 2 . | . . . . Level 3 . | . . . . Level 4 . | . . . . Level 5 . | . . . . High Security . | . . . . Max Security . | . . . . Squads Dispatched 5 | . . 1 4 Investigation 1 | . . . 1 Extermination . | . . . . Reinforcement 4 | . . 1 3 Assault . | . . . . Garrison . | . . . . Intercept . | . . . . Construction Impeded . | . . . . Haulers Reinforced . | . . . . Stealth | -11 -10 -9 -8 --------- Run | Scr Mat Mat Mat Distress Signals . | . . . . Communications Jammed . | . . . . Distress Signals . | . . . . Times Spotted 34 | . . 15 19 Peak Tracking Total 5 | . . 4 5 Tactical Retreats 2 | . . 2 . Traps | -11 -10 -9 -8 ------- Run | Scr Mat Mat Mat Traps Triggered 1 | . . . 1 Indirectly . | . . . . Trap Hack Attempts . | . . . . Triggered . | . . . . Disarmed . | . . . . Reprogrammed . | . . . . Reused . | . . . . Traps Extracted . | . . . . Installed . | . . . . Triggered . | . . . . Machines | -11 -10 -9 -8 ---------- Run | Scr Mat Mat Mat Machines Disabled 1 | . . . 1 Max in Single Turn 1 | . . . 1 Machines Sabotaged . | . . . . Garrisons Compromised . | . . . . Overloaded Fab Kills . | . . . . Fab Network Shutdowns . | . . . . Hacking | -11 -10 -9 -8 --------- Run | Scr Mat Mat Mat Machines Accessed 8 | . 4 4 . Terminals 7 | . 3 4 . Fabricators . | . . . . Repair Stations . | . . . . Recycling Units 1 | . 1 . . Scanalyzers . | . . . . Garrison Access . | . . . . Total Hacks 35 | . 18 17 . Successful 17 | . 10 7 . Failed 16 | . 7 9 . Catastrophic 1 | . 1 . . Database Lockouts 2 | . 1 1 . Manual 31 | . 14 17 . Terminals 32 | . 15 17 . Fabricators . | . . . . Repair Stations . | . . . . Recycling Units 3 | . 3 . . Scanalyzers . | . . . . Garrison Access . | . . . . Terminal Hacks 9 | . 5 4 . Robot Analysis 5 | . 2 3 . Terminal Index 2 | . 1 1 . Hauler Manifests 1 | . 1 . . Registered Components 1 | . 1 . . Fabricator Hacks . | . . . . Repair Station Hacks . | . . . . Recycling Unit Hacks 1 | . 1 . . Retrieve Components 1 | . 1 . . Scanalyzer . | . . . . Garrison Access Hacks . | . . . . Unauthorized Hacks 7 | . 4 3 . Terminals 6 | . 3 3 . Assimilate 1 | . . 1 . Botnet 4 | . 2 2 . Operators 1 | . 1 . . Fabricators . | . . . . Repair Stations . | . . . . Recycling Units 1 | . 1 . . Reject 1 | . 1 . . Scanalyzers . | . . . . Garrison Access . | . . . . Data Cores Recovered . | . . . . Used . | . . . . Hacking Detections 8 | . 4 4 . Full Trace Events . | . . . . Feedback Events . | . . . . Feedback Blocked . | . . . . Robot Schematics Acquired . | . . . . Robots Built . | . . . . Matter . | . . . . Time . | . . . . Total Robot Build Rating . | . . . . Part Schematics Acquired . | . . . . Parts Built . | . . . . Matter . | . . . . Time . | . . . . Total Part Build Rating . | . . . . Parts Repaired . | . . . . Time . | . . . . Parts Recycled . | . . . . Recycled Matter . | . . . . Retrieved Matter . | . . . . Retrieved Components 2 | . 2 . . Parts Scanalyzed . | . . . . Part Schematics Acquired . | . . . . Parts Damaged . | . . . . Bothacking | -11 -10 -9 -8 ------------ Run | Scr Mat Mat Mat Used RIF Installer . | . . . . Robots Hacked . | . . . . Non-combat . | . . . . Combat . | . . . . Robot Hacks Applied . | . . . . Relay Couplers Released . | . . . . Robots Rewired . | . . . . Allies Hacked . | . . . . Hacks Repelled . | . . . . Allies | -11 -10 -9 -8 -------- Run | Scr Mat Mat Mat Total Allies 1 | . . 1 . Largest Group 1 | . . 1 1 Highest-Rated Group 10 | . . 10 10 Highest-Rated Ally 10 | . . 10 10 Total Orders 1 | . . . 1 STAY 1 | . . . 1 Ally Attacks . | . . . . Total Damage . | . . . . Kills . | . . . . Allies Corrupted . | . . . . Allies Melted . | . . . . Intel | -11 -10 -9 -8 ------- Run | Scr Mat Mat Mat Robot Analysis Total 5 | . 2 3 . Derelict Logs Recovered . | . . . . Drone Launches . | . . . . Drone Recoveries . | . . . . Exploration | -11 -10 -9 -8 ------------- Run | Scr Mat Mat Mat Turns Passed 2241 | 2 739 1015 485 Spaces Moved 1247 | 2 481 546 218 Core . | . . . . Treads 301 | . . 83 218 Legs 946 | 2 481 463 . Wheels . | . . . . Hover . | . . . . Flight . | . . . . Fastest Speed 120 | 120 120 150 160 Average Speed 148 | 120 140 151 160 Slowest Speed 180 | 120 150 180 160 Overloaded Moves . | . . . . Propulsion Burnouts . | . . . . Robots Hopped . | . . . . Cave-ins Triggered . | . . . . Exploration Rate (%) 24 | 2 45 34 17 Regions Visited 3 Branch Regions . Pre-discovered Areas . | . . . . Known Exits Taken . | . . . . Unknown Exits Taken 3 | 1 1 1 . Scrap Searched . | . . . . Spaces Dug . | . . . . Terrain Destroyed . | . . . . Melee . | . . . . Projectile . | . . . . AOE . | . . . . Terrain Rammed . | . . . . Walls Destroyed . | . . . . Machines Disabled . | . . . . Actions | -11 -10 -9 -8 --------- Run | Scr Mat Mat Mat Total 1537 | 1 541 700 295 Wait 173 | . 42 111 20 Move 1244 | 1 480 545 218 Hop . | . . . . Pick Up 21 | . 8 6 7 Fast Attach 8 | . 1 3 4 Attach 7 | . . 1 6 Detach . | . . . . Swap 8 | . 3 3 2 Drop 21 | . 5 10 6 Fire 53 | . 2 21 30 Melee . | . . . . Ram . | . . . . Kick . | . . . . Crush 2 | . . . 2 Escape Stasis . | . . . . Rewire . | . . . . Trap . | . . . . Miscellaneous . | . . . . Route ------- -11/Scrapyard -10/Materials (discovered 2 exits: *Mat / [*Min]) -9/Materials (discovered 2 exits: [*Mat] / [*Min]) -8/Materials History --------- Turn | Location | Event 1 | -11/Scrapyard | Discovered new exit (range 1) 3 | -11/Scrapyard | Entered Materials 181 | -10/Materials | Discovered new exit (range 7) 213 | -10/Materials | Discovered new exit (range 14) 269 | -10/Materials | Central database locked down 307 | -10/Materials | Build established: Mutant 742 | -10/Materials | Entered another Materials area 742 | -9/Materials | Evolved 2 slots: Utility x2 1435 | -9/Materials | Discovered new exit (range 5) 1592 | -9/Materials | Discovered new exit (range 16) 1684 | -9/Materials | Central database locked down 1757 | -9/Materials | Entered another Materials area 1757 | -8/Materials | Accompanied by 1 ally 1757 | -8/Materials | Evolved 2 slots: Propulsion x1, Utility x1 2242 | -8/Materials | Self-destructed Last Messages --------------- 02194_ U-05 Engineer lays Concrete. 02204_ R-06 Scavenger collects Lgt. Ion Engine. 02211_ U-05 Engineer lays Concrete. 02213_ Imp. Ion Engine melted. 02213_ Y-45 Defender destroyed. 02213_ R-06 Scavenger collects Lgt. Treads. 02220_ K-01 Serf collects debris. 02222_ Overheating: System interference. 02222_ Imp. Targeting Computer temporarily disabled. 02222_ Adv. Sensor Array temporarily disabled. 02222_ Imp. Targeting Computer temporarily disabled. 02222_ T-07 Excavator destroyed. 02224_ K-01 Serf collects debris. 02229_ Hacking Suite destroyed. 02231_ K-01 Serf collects debris. 02236_ Slammed into G-47 Trooper. 02238_ Lgt. Treads destroyed. 02239_ K-01 Serf collects debris. 02239_ Pulse Rifle destroyed. 02242_ Lgt. Treads destroyed. Map ----- +----------------------------------------------------+ | ?????????????????????????????????????????????????? | | ?????????????????????????????????????????????????? | | ?????????????????????????????????????????????????? | | ?????????????????????????????????????????????????? | | ?????????????????????????????????????????????????? | | ?????????????????????????????????????????????????? | | ?????????????????????????????????????????????????? | | ?????????????????????????????????????????????????? | | ?????????????????????????????????????????????????? | | ?????????????????????????????????????????????????? | | ?????????????????????????????????????????????????? | | ?????????????????????????????????????????????????? | | ?????????????????????????????????????????????????? | | ?????????????????????????????????????????????????? | | ?????????????????????????????????????????????????? | | ?????????????????????????????????????????????????? | | ?????????????????????????????????????????????????? | | ?????????????????????????????????????????????????? | | ?????????????????????????????????????????????????? | | ?????????? ??????????????????????????????????????? | | ?????????? ###+######+####??????????????????????? | | ????????? u #??????????????????????? | | ?????????? +??????????????????????? | | ?????????? #??????????????????????? | | ?????????????# #??????????????????????? | | ?????????????# u @############+??????????? | | ?????????????# o gkg ????????? | | ?????????????# u ????????? | | ?????????????# u % ????????? | | ?????????????# ##### #############+#?????????? | | ?????????????# ??????#%! #???????????????????????? | | ?????????????????????# #???????????????????????? | | ?????????????????????#u #???????????????????????? | | ?????????????????????# gg#???????????????????????? | | ?????????????????????#g #???????????????????????? | | ?????????????????????# #??#######??????????????? | | ?????????????????????# #### #??????????????? | | ?????????????????????# %! #??????????????? | | ?????????????????????# = #??????????????? | | ?????????????????????# #??????????????? | | ?????????????????????######## #??????????????? | | ????????????????????????????## ########????????? | | ?????????????????????????????# #! #????????? | | ?????????????????????????????# # [#????????? | | ?????????????????????????????#^^^/ = #????????? | | ?????????????????????????????# # #????????? | | ?????????????????????????????# # #????????? | | ?????????????????????????????# # ! /#????????? | | ??????????????????????######## ###########?????? | | ??????????????????????# # #??# ?#??? | +----------------------------------------------------+ Best States ------------- Heat Dissipation 31 Energy Generation 15 Energy Capacity 250 Matter Stores 300 Matter Capacity 300 Sight Range 16 Robot Scan Range 16 Terrain Scan Density 10 Evasion (%) 40 Targeting Accuracy 12 Recoil Reduction 3 Energy Filtering 30 Offensive Hacking 10 Item Schematics ----------------- None Robot Schematics ------------------ None Fabricated ------------ Nothing Alien Tech Used ----------------- None Achievements -------------- None Challenges ------------ None Game ------ Seed GravitonFissionRouter Manual? 0 Play Time 00:20:18 Cumulative 87.8 hours Start 2022.01.24 @ 14:04:16 End 2022.01.24 @ 18:14:31 Sessions 2 Manual Loads 0 Difficulty Rogue Special Mode None Game No. 104 Rogue 104 Adventurer 0 Explorer 0 Win Type - Total 0 Types 0/0/0/0/0/0/0/0/0 Lore% 52 Gallery% 53 Achievement% 43 Wizard Run 0 Options --------- ASCII 0 Keyboard 0 Movement Numpad Keybinds 0 Fullscreen 1 Font 18/X11Bold Map View 76x50 Tactical HUD 1 Map Filters NONE Filters NONE Steam 1 RUN: d47fedda-1542-4161-a109-7baa4b3ef773